bitfinex-derivatives/quotes_SOLF0:USTF0_20260218
["timestamp","ask_amount","ask_price","bid_price","bid_amount"]
[1771442909605,22.90366775,80.971,80.912,22.08963653]
[1771442910611,22.90366775,80.955,80.912,22.08963653]
[1771442910806,22.90366775,80.955,80.892,22.08963653]
[1771442911204,22.90366775,80.955,80.894,33.22013653]
[1771442912208,11.124,80.943,80.897,22.08963653]
[1771442913406,22.90366775,80.955,80.891,77.76]
[1771442913407,22.90366775,80.955,80.9,22.08963653]
[1771442914102,22.90366775,80.945,80.9,22.08963653]
[1771442914914,11.1255,80.931,80.885,22.08963653]
[1771442915312,123.28669383,80.965,80.885,22.08963653]
[1771442915313,22.90366775,80.93,80.885,22.08963653]
[1771442915504,11.1265,80.925,80.885,22.08963653]
[1771442916416,11.1273,80.919,80.885,22.08963653]
[1771442917616,11.1261,80.928,80.885,22.08963653]
[1771442918115,11.1261,80.928,80.891,22.08963653]
[1771442918420,11.1261,80.928,80.9,3.12775559]
[1771442918611,11.1249,80.936,80.91,3.12775559]
[1771442919316,11.1239,80.943,80.91,3.12775559]
[1771442919519,3.12775559,80.96,80.91,3.12775559]
[1771442919723,22.90366775,80.961,80.91,3.12775559]
[1771442919907,22.90366775,80.961,80.917,22.08963653]
[1771442920517,11.1209,80.965,80.919,22.08963653]
[1771442920910,11.1209,80.965,80.92,11.127]
[1771442921110,22.90366775,80.976,80.921,22.08963653]
[1771442921718,11.1208,80.966,80.922,22.08963653]
[1771442923811,11.1197,80.974,80.927,22.08963653]
[1771442924215,22.90366775,80.974,80.911,22.08963653]
[1771442924518,11.1228,80.952,80.911,22.08963653]
[1771442924916,34.02536775,80.96,80.912,21.90526352]
[1771442925621,34.02536775,80.96,80.91,8.37166956]
[1771442925622,11.1217,80.96,80.914,21.90526352]
[1771442926822,11.1217,80.96,80.917,21.90526352]
[1771442927020,21.7978345,80.961,80.9,21.90526352]
[1771442927519,11.125,80.936,80.9,21.90526352]
[1771442928618,11.1239,80.944,80.9,21.90526352]
[1771442929020,11.1247,80.937,80.9,21.90526352]
[1771442930026,11.1237,80.945,80.9,21.90526352]
[1771442930821,11.1246,80.939,80.9,21.90526352]
[1771442931513,32.9212345,80.947,80.9,21.90526352]
[1771442931718,9.4660593,80.971,80.9,21.90526352]
[1771442931719,21.7978345,80.969,80.9,21.90526352]
[1771442932019,11.1194,80.976,80.924,11.1264]
[1771442932224,21.7978345,80.985,80.925,21.90526352]
[1771442933621,21.7978345,80.981,80.934,11.1251]
[1771442933821,46.55424869,81.011,80.925,21.90526352]
[1771442934021,21.7978345,81.01,80.941,21.90526352]
[1771442934920,21.7978345,81.01,80.959,21.90526352]
[1771442935126,21.7978345,81.01,80.961,21.90526352]
[1771442936319,8.37166956,81.04,80.946,77.76]
[1771442936320,21.7978345,81.006,80.949,33.02826352]
[1771442936525,21.7978345,81.006,80.95,21.90526352]
[1771442936927,11.1155,81.004,80.953,11.1224]
[1771442937130,21.7978345,81.006,80.954,21.90526352]
[1771442937729,20.60397129,81.021,80.965,20.72276171]
[1771442938834,20.60397129,81.021,80.973,11.1197]
[1771442939538,20.60397129,81.021,80.974,20.72276171]
[1771442939734,20.60397129,81.021,80.975,11.1194]
[1771442940535,20.60397129,81.021,80.974,20.72276171]
[1771442940836,20.60397129,81.021,80.94,8.37166956]
[1771442941033,11.1137,81.017,80.963,11.1211]
[1771442941335,20.60397129,81.016,80.964,20.72276171]
[1771442942040,20.60397129,81.016,80.97,3.12133429]
[1771442942434,20.60397129,81.016,80.98,3.12133429]
[1771442943035,20.60397129,81.037,81.0,3.12133429]
[1771442943941,20.60397129,81.037,80.98,3.12133429]
[1771442944141,20.60397129,81.037,80.99,3.12133429]
[1771442944437,20.60397129,81.032,80.99,3.12133429]
[1771442944637,20.60397129,81.032,80.981,20.72276171]
[1771442944934,20.60397129,81.029,80.98,3.12133429]
[1771442945134,11.1133,81.021,80.98,3.12133429]
[1771442946544,11.1145,81.012,80.98,3.12133429]
[1771442946733,11.1145,81.012,80.97,3.12133429]
[1771442947941,11.1154,81.006,80.97,3.12133429]
[1771442949327,31.71817129,81.014,80.97,3.12133429]
[1771442949533,20.60397129,81.013,80.96,3.12133429]
[1771442949731,20.60397129,81.009,80.96,3.12133429]
[1771442950032,20.60397129,81.009,80.97,3.12133429]
[1771442950633,11.1151,81.008,80.97,3.12133429]
[1771442950840,20.60397129,81.009,80.97,3.12133429]
[1771442951843,20.60397129,81.009,80.96,3.12133429]
[1771442952237,20.60397129,81.009,80.97,3.12133429]
[1771442952843,20.60397129,81.007,80.97,3.12133429]
[1771442953740,11.1152,81.006,80.97,3.12133429]
[1771442954240,3.12133429,81.0,80.94,20.72276171]
[1771442954448,11.1192,80.978,80.94,23.844096]
[1771442954740,20.60397129,81.002,80.96,3.12133429]
[1771442954939,11.1172,80.992,80.96,3.12133429]
[1771442955240,11.1172,80.992,80.95,20.72276171]
[1771442955448,11.1172,80.992,80.96,3.12133429]
[1771442955946,11.1172,80.992,80.95,20.72276171]
[1771442957742,133.20686441,81.016,80.95,29.08858759]
[1771442958036,20.90686441,81.016,80.951,21.90316756]
[1771442958446,11.1148,81.01,80.966,21.90316756]
[1771442959639,11.1148,81.01,80.967,11.1205]
[1771442959843,11.1148,81.01,80.968,21.90316756]
[1771442960339,11.1156,81.004,80.968,21.90316756]
[1771442960543,20.90686441,81.035,80.968,21.90316756]
[1771442961248,20.90686441,81.035,80.95,8.36582588]
[1771442961249,11.1145,81.012,80.97,21.90316756]
[1771442961944,11.1145,81.012,80.971,11.1199]
[1771442962144,20.90686441,81.035,80.971,11.1199]
[1771442962145,11.1135,81.019,80.971,11.1199]
[1771442962345,11.1135,81.019,80.971,33.02306756]
[1771442963341,20.90686441,81.022,80.971,33.02306756]
[1771442963745,20.90686441,81.022,80.972,21.90316756]
[1771442964235,20.90686441,81.022,80.974,11.1195]
[1771442965947,20.90686441,81.022,80.974,33.02266756]
[1771442966151,20.90686441,81.022,80.979,11.1189]
[1771442967248,20.90686441,81.022,80.981,11.1186]
[1771442967448,20.90686441,81.022,80.982,21.90316756]
[1771442968337,11.114,81.015,80.982,21.90316756]
[1771442968537,20.90686441,81.022,80.95,8.36582588]
[1771442968538,20.90686441,81.022,80.958,21.90316756]
[1771442969141,20.90686441,81.014,80.958,21.90316756]
[1771442970351,11.1147,81.011,80.964,11.1209]
[1771442970952,11.1147,81.011,80.964,33.02406756]
[1771442972155,111.92,81.03,80.976,21.90316756]
[1771442972156,11.1137,81.018,80.976,21.90316756]
[1771442973243,11.1128,81.024,80.976,21.90316756]
[1771442973447,20.90686441,81.023,80.962,21.90316756]
[1771442973956,20.90686441,81.017,80.962,21.90316756]
[1771442974642,11.1146,81.011,80.968,11.1203]
[1771442975844,20.90686441,81.017,80.975,11.1195]
[1771442976050,20.90686441,81.031,80.99,3.12163346]
[1771442976654,11.1121,81.029,80.99,14.23903346]
[1771442976952,20.90686441,81.031,80.99,14.23903346]
[1771442979654,20.90686441,81.031,80.996,11.1166]
[1771442981853,20.90686441,81.031,80.99,3.12163346]
[1771442982364,20.90686441,81.049,80.99,25.02480102]
[1771442982556,20.57011193,81.048,81.01,25.02480102]
[1771442982755,9.46061193,81.047,81.01,25.02480102]
[1771442982963,9.46061193,81.046,81.01,25.02480102]
[1771442983163,11.1095,81.048,81.01,25.02480102]
[1771442983366,11.1098,81.046,81.01,25.02480102]
[1771442986465,19.0,81.053,81.01,25.02480102]
[1771442986673,9.46806247,81.052,81.01,25.02480102]
[1771442986866,19.0,81.053,81.01,25.02480102]
[1771442987071,9.46116457,81.052,81.01,25.02480102]
[1771442987371,19.0,81.053,81.01,25.02480102]
[1771442987773,11.1091,81.051,81.01,25.02480102]
[1771442988863,11.1091,81.051,81.01,21.90316756]
[1771442989072,31.31698377,81.048,81.01,25.02480102]
[1771442989463,11.1075,81.063,81.01,25.02480102]
[1771442989667,19.0,81.074,80.972,22.2397]
[1771442989668,19.0,81.074,81.03,3.12163346]
[1771442989869,9.45957435,81.073,81.03,3.12163346]
[1771442990068,39.20748377,81.076,81.03,3.12163346]
[1771442990263,11.1065,81.07,81.03,3.12163346]
[1771442990469,20.20748377,81.069,81.021,19.96742766]
[1771442990868,20.20748377,81.069,81.03,3.12163346]
[1771442991172,11.107,81.067,81.03,3.12163346]
[1771442991474,20.20748377,81.082,81.04,3.12163346]
[1771442991872,20.20748377,81.082,81.05,3.12163346]
[1771442993077,11.1045,81.085,81.05,3.12163346]
[1771442993662,11.1035,81.092,81.06,3.12163346]
[1771442994268,11.1035,81.092,81.052,19.96742766]
[1771442995171,20.20748377,81.089,81.04,3.12163346]
[1771442995371,20.20748377,81.089,81.037,19.96742766]
[1771442995677,20.20748377,81.079,81.03,3.12163346]
[1771442995877,20.20748377,81.079,81.024,19.96742766]
[1771442996667,20.20748377,81.096,81.05,3.12163346]
[1771442996872,20.20748377,81.089,81.03,3.12163346]
[1771442997370,20.20748377,81.089,81.04,3.12163346]
[1771442997569,20.20748377,81.089,81.024,19.96742766]
[1771442997570,20.20748377,81.089,81.03,3.12163346]
[1771442997766,11.1072,81.065,81.03,3.12163346]
[1771442997977,20.33370217,81.076,81.024,19.96742766]
[1771442998571,11.1082,81.058,81.03,3.12163346]
[1771442998869,11.1082,81.058,81.03,24.02814466]
[1771442999276,20.33370217,81.076,81.03,3.12163346]
[1771442999877,11.1085,81.056,81.02,20.9065112]
[1771443000071,11.1085,81.056,81.02,24.02814466]
[1771443000275,20.33370217,81.069,81.02,20.9065112]
[1771443000479,11.1084,81.057,81.02,24.02814466]
[1771443000678,20.33370217,81.069,81.03,3.12163346]
[1771443000878,20.33370217,81.069,81.02,24.02814466]
[1771443001476,11.108,81.059,81.03,24.02814466]
[1771443001674,20.33370217,81.083,81.03,24.02814466]
[1771443001980,20.33370217,81.079,81.03,24.02814466]
[1771443002983,3.12163346,81.11,81.06,3.12163346]
[1771443003178,19.0,81.137,81.05,20.9065112]
[1771443003179,20.33370217,81.109,81.07,3.12163346]
[1771443003580,20.33370217,81.109,81.06,3.12163346]
[1771443003779,20.33370217,81.109,81.05,24.02814466]
[1771443004080,20.33370217,81.099,81.05,24.02814466]
[1771443004781,11.1035,81.092,81.05,24.02814466]
[1771443006478,20.33370217,81.114,81.06,3.12163346]
[1771443006679,20.33370217,81.109,81.06,3.12163346]
[1771443007581,20.33370217,81.094,81.04,3.12163346]
[1771443007787,20.33370217,81.079,81.03,3.12163346]
[1771443007973,11.1065,81.071,81.03,3.12163346]
[1771443008177,20.33370217,81.095,81.04,24.02814466]
[1771443008389,20.33370217,81.089,81.04,24.02814466]
[1771443008580,11.1054,81.079,81.04,24.02814466]
[1771443009191,31.43990217,81.072,81.03,3.12163346]
[1771443009390,31.43990217,81.072,81.026,20.9065112]
[1771443009391,3.12163346,81.07,81.026,20.9065112]
[1771443009592,23.45533563,81.07,81.026,20.9065112]
[1771443009799,20.33370217,81.085,81.04,3.12163346]
[1771443010098,20.33370217,81.085,81.031,20.9065112]
[1771443010488,23.45533563,81.07,81.02,3.12163346]
[1771443010892,11.1071,81.066,81.02,24.02814466]
[1771443011292,20.33370217,81.07,81.02,24.02814466]
[1771443011500,11.1082,81.058,81.02,24.02814466]
[1771443012098,11.109,81.052,81.02,24.02814466]
[1771443012695,23.45533563,81.07,81.01,3.12163346]
[1771443012897,20.33370217,81.059,81.01,3.12163346]
[1771443013203,20.33370217,81.059,81.01,24.02814466]
[1771443013497,11.1109,81.038,81.01,24.02814466]
[1771443013996,11.113,81.023,80.981,77.72]
[1771443014198,11.113,81.023,80.976,11.1193]
[1771443014199,11.113,81.023,80.992,20.9065112]
[1771443015197,22.83540763,81.03,80.98,3.12163346]
[1771443015402,22.83540763,81.03,80.976,21.49785134]
[1771443015795,11.1128,81.024,80.98,3.12163346]
[1771443015997,11.1128,81.024,80.976,21.49785134]
[1771443016395,19.71377417,81.03,80.976,21.49785134]
[1771443016593,19.71377417,81.03,80.95,8.35863599]
[1771443016804,11.114,81.015,80.962,21.49785134]
[1771443017304,11.115,81.008,80.962,21.49785134]
[1771443019401,19.71377417,81.008,80.92,8.35863599]
[1771443019608,19.71377417,80.999,80.914,21.49785134]
[1771443019802,19.71377417,80.979,80.914,21.49785134]
[1771443020003,19.71377417,80.966,80.914,21.49785134]
[1771443020207,19.71377417,80.966,80.896,21.49785134]
[1771443020402,8.35863599,80.96,80.871,11.1337]
[1771443020605,19.71377417,80.959,80.88,8.35863599]
[1771443020905,12.32263468,80.981,80.839,12.15372109]
[1771443020906,11.1207,80.966,80.902,11.1294]
[1771443021205,19.71377417,80.98,80.85,173.2376]
[1771443021206,19.71377417,80.98,80.921,21.49785134]
[1771443021703,19.71377417,80.978,80.921,21.49785134]
[1771443022304,11.1209,80.965,80.921,21.49785134]
[1771443022501,19.71377417,80.978,80.921,21.49785134]
[1771443023008,11.1206,80.967,80.921,21.49785134]
[1771443023403,11.1211,80.963,80.904,21.49785134]
[1771443023606,19.71377417,80.962,80.904,21.49785134]
[1771443023809,19.71377417,80.962,80.886,21.49785134]
[1771443024112,11.1234,80.947,80.888,21.49785134]
[1771443025304,11.1234,80.947,80.885,77.76]
[1771443025305,11.1234,80.947,80.9,8.35863599]
[1771443025510,11.1234,80.947,80.901,21.49785134]
[1771443026815,19.71377417,80.981,80.921,21.49785134]
[1771443027310,19.71377417,80.981,80.909,21.49785134]
[1771443027716,19.71377417,80.96,80.88,8.35863599]
[1771443028013,19.71377417,80.96,80.88,29.85648733]
[1771443028316,8.35863599,80.97,80.881,21.49785134]
[1771443028317,11.1254,80.933,80.881,21.49785134]
[1771443028613,8.35863599,80.97,80.881,21.49785134]
[1771443028614,19.71377417,80.964,80.881,21.49785134]
[1771443028912,11.1228,80.951,80.894,21.49785134]
[1771443029111,19.71377417,80.964,80.9,8.35863599]
[1771443029317,19.71377417,80.98,80.901,21.49785134]
[1771443029704,8.35863599,81.0,80.905,21.49785134]
[1771443029705,30.83527417,80.961,80.905,21.49785134]
[1771443029905,19.71377417,80.999,80.905,21.49785134]
[1771443030908,19.71377417,80.979,80.907,21.49785134]
[1771443031114,19.71377417,80.979,80.921,21.49785134]
[1771443032410,19.71377417,80.999,80.941,21.49785134]
[1771443032710,19.71377417,80.999,80.94,8.35863599]
[1771443033209,19.71377417,80.999,80.94,29.85648733]
[1771443033816,11.1177,80.989,80.94,29.85648733]
[1771443034425,11.119,80.979,80.94,21.49785134]
[1771443035115,11.1178,80.988,80.94,21.49785134]
[1771443035307,19.71377417,80.999,80.94,21.49785134]
[1771443036815,19.71377417,81.015,80.941,21.49785134]
[1771443037217,11.1163,80.999,80.942,21.49785134]
[1771443038116,11.1149,81.009,80.953,21.49785134]
[1771443039015,19.71377417,81.008,80.953,21.49785134]
[1771443040515,11.1168,80.995,80.946,11.1233]
[1771443040715,11.1168,80.995,80.94,8.36350698]
[1771443040716,19.71377417,80.995,80.94,8.36350698]
[1771443041013,19.71377417,80.995,80.921,21.49785134]
[1771443041420,19.71377417,81.019,80.941,21.49785134]
[1771443042119,19.71377417,80.998,80.941,21.49785134]
[1771443042913,11.1169,80.995,80.942,21.49785134]
[1771443044210,11.1169,80.995,80.944,21.49785134]
[1771443045515,11.1169,80.995,80.946,20.28655795]
[1771443047122,11.1181,80.986,80.946,20.28655795]
[1771443048521,11.1189,80.98,80.94,8.36350698]
[1771443048722,19.71377417,80.998,80.93,20.28655795]
[1771443049219,11.12,80.972,80.93,20.28655795]
[1771443049730,19.91882762,80.984,80.93,20.28655795]
[1771443050426,11.1187,80.981,80.938,20.28655795]
[1771443051121,11.1187,80.981,80.941,20.28655795]
[1771443051322,19.91882762,81.015,80.943,20.28655795]
[1771443051516,19.91882762,81.015,80.961,20.28655795]
[1771443052212,11.1143,81.013,80.961,20.28655795]
[1771443053226,19.91882762,81.006,80.963,11.121]
[1771443053724,19.91882762,81.006,80.962,11.1212]
[1771443054322,19.91882762,81.003,80.945,11.1235]
[1771443055320,19.91882762,80.999,80.939,20.28655795]
[1771443056023,11.1165,80.997,80.947,11.1233]
[1771443056728,11.1165,80.997,80.952,11.1225]
[1771443057422,11.1165,80.997,80.948,20.28655795]
[1771443058023,31.47922582,80.997,80.948,20.28655795]
[1771443059222,11.1171,80.993,80.948,20.28655795]
[1771443059416,20.36272582,80.992,80.93,8.36350698]
[1771443059618,20.36272582,80.992,80.932,20.75987296]
[1771443060120,20.36272582,80.989,80.94,3.1242354]
[1771443061130,20.36272582,80.989,80.932,20.75987296]
[1771443061424,9.38960025,81.002,80.95,23.88410836]
[1771443061625,20.36272582,81.001,80.96,3.1242354]
[1771443062028,11.1189,80.98,80.95,23.88410836]
[1771443062228,20.36272582,81.001,80.95,23.88410836]
[1771443063124,11.1187,80.981,80.95,3.1242354]
[1771443063425,20.36272582,80.988,80.95,3.1242354]
[1771443063932,31.48052582,80.988,80.95,3.1242354]
[1771443064530,11.1186,80.982,80.95,3.1242354]
[1771443064726,20.36272582,80.988,80.94,3.1242354]
[1771443065823,11.1184,80.983,80.94,3.1242354]
[1771443066225,11.1184,80.983,80.941,11.1241]
[1771443067223,11.1184,80.983,80.94,3.1242354]
[1771443067429,11.1192,80.977,80.95,3.1242354]
[1771443068435,11.1192,80.977,80.94,3.1242354]
[1771443070224,20.36272582,80.988,80.94,3.1242354]
[1771443070434,20.36272582,80.979,80.93,3.1242354]
[1771443070929,11.1209,80.966,80.93,3.1242354]
[1771443072039,11.1209,80.966,80.94,3.1242354]
[1771443072534,11.1198,80.974,80.95,3.1242354]
[1771443072839,20.36272582,81.008,80.96,3.1242354]
[1771443073232,20.36272582,81.008,80.95,23.88410836]
[1771443073429,20.36272582,80.995,80.95,23.88410836]
[1771443075240,20.36272582,80.995,80.95,35.00700836]
[1771443076030,20.36272582,80.995,80.95,3.1242354]
[1771443077241,21.02220882,80.989,80.922,20.76567327]
[1771443077438,21.02220882,80.989,80.93,3.1242354]
[1771443077833,21.02220882,80.979,80.93,3.1242354]
[1771443078837,21.02220882,80.979,80.931,11.1254]
[1771443079032,21.02220882,80.979,80.93,3.1242354]
[1771443080226,21.02220882,80.977,80.937,11.1247]
[1771443080430,127.66,80.999,80.92,3.1242354]
[1771443080431,21.02220882,80.969,80.92,3.1242354]
[1771443081635,21.02220882,80.989,80.94,3.1242354]
[1771443082031,21.02220882,80.983,80.94,3.1242354]
[1771443084341,21.02220882,80.983,80.95,3.1242354]
[1771443084539,19.0,80.999,80.95,3.1242354]
[1771443084540,21.02220882,80.996,80.95,3.1242354]
[1771443084834,21.02220882,80.996,80.96,3.1242354]
[1771443085038,21.02220882,80.996,80.938,11.1245]
[1771443085239,21.02220882,80.969,80.911,20.76567327]
[1771443085438,21.02220882,80.983,80.93,23.88990867]
[1771443085640,21.02220882,80.983,80.94,23.88990867]
[1771443085828,21.02220882,80.998,80.95,3.1242354]
[1771443086034,30.47088087,80.997,80.95,3.1242354]
[1771443086234,32.13890882,80.996,80.95,3.1242354]
[1771443086535,3.1242354,81.0,80.94,23.88990867]
[1771443086536,21.02220882,80.995,80.94,23.88990867]
[1771443086735,21.02220882,80.989,80.94,23.88990867]
[1771443087737,21.02220882,80.989,80.94,20.76567327]
[1771443088039,21.02220882,80.989,80.94,23.88990867]
[1771443088228,21.02220882,80.988,80.94,23.88990867]
[1771443091131,11.1181,80.986,80.94,23.88990867]
[1771443091640,21.02220882,80.984,80.94,23.88990867]
[1771443092743,11.1187,80.981,80.94,23.88990867]
[1771443093542,21.02220882,80.967,80.922,20.76567327]
[1771443093841,24.14644422,80.98,80.931,20.76567327]
[1771443094043,21.02220882,80.98,80.94,3.1242354]
[1771443094744,11.1196,80.975,80.94,3.1242354]
[1771443095043,21.02220882,80.98,80.931,20.76567327]
[1771443095846,24.14644422,80.98,80.931,20.76567327]
[1771443096646,21.02220882,80.968,80.93,3.1242354]
[1771443096850,21.02220882,80.968,80.92,3.1242354]
[1771443097439,3.1242354,80.96,80.901,20.76567327]
[1771443097639,21.02220882,80.949,80.901,20.76567327]
[1771443097839,32.14560882,80.947,80.901,20.76567327]
[1771443098342,21.02220882,80.946,80.901,31.89517327]
[1771443098841,108.04,80.972,80.841,12.36]
[1771443098842,3.12729851,80.94,80.89,3.12729851]
[1771443099044,24.14950733,80.94,80.882,11.1322]
[1771443099246,3.12729851,80.92,80.874,20.76567327]
[1771443099552,3.12729851,80.92,80.826,38.31272065]
[1771443099553,21.02220882,80.909,80.86,23.89297178]
[1771443099736,21.02220882,80.909,80.86,20.76567327]
[1771443099942,21.02220882,80.899,80.845,20.76567327]
[1771443100139,3.12729851,80.88,80.83,3.12729851]
[1771443100448,21.02220882,80.888,80.84,3.12729851]
[1771443100647,24.14950733,80.88,80.83,3.12729851]
[1771443101042,24.14950733,80.88,80.801,77.76]
[1771443101043,3.12729851,80.86,80.81,3.12729851]
[1771443101342,3.12729851,80.86,80.739,173.4748]
[1771443101343,21.02220882,80.882,80.821,20.76567327]
[1771443101543,173.072,80.928,80.749,173.4542]
[1771443101544,21.02220882,80.879,80.83,23.89297178]
[1771443101749,24.14950733,80.87,80.8,20.76567327]
[1771443101937,24.14950733,80.87,80.82,3.12729851]
[1771443102142,21.02220882,80.849,80.8,23.89297178]
[1771443102354,173.136,80.898,80.785,20.76567327]
[1771443102355,3.12729851,80.83,80.785,20.76567327]
[1771443102743,11.1396,80.829,80.785,20.76567327]
[1771443103045,21.02220882,80.839,80.79,3.12729851]
[1771443103242,21.02220882,80.839,80.8,3.12729851]
[1771443103848,21.02220882,80.839,80.757,2.15323883]
[1771443103849,21.02220882,80.856,80.81,3.12729851]
[1771443104148,21.02220882,80.871,80.82,3.12729851]
[1771443105153,11.1327,80.879,80.831,18.0874546]
[1771443105348,11.1327,80.879,80.84,3.12729851]
[1771443105652,11.1338,80.872,80.831,18.0874546]
[1771443106148,8.39110938,80.9,80.831,18.0874546]
[1771443106354,19.54438247,80.899,80.831,18.0874546]
[1771443106848,11.1305,80.895,80.834,18.0874546]
[1771443107049,19.54438247,80.894,80.83,8.39110938]
[1771443107650,11.1335,80.874,80.819,18.0874546]
[1771443107850,19.54438247,80.894,80.819,18.0874546]
[1771443108150,11.1332,80.876,80.82,18.0874546]
[1771443108551,19.54438247,80.894,80.831,18.0874546]
[1771443109254,11.1318,80.886,80.831,18.0874546]
[1771443109452,19.54438247,80.885,80.831,18.0874546]
[1771443109652,19.54438247,80.885,80.818,11.141]
[1771443109852,19.54438247,80.885,80.815,18.0874546]
[1771443110265,98.5,80.899,80.815,18.0874546]
[1771443110266,11.1345,80.866,80.815,18.0874546]
[1771443111253,19.54438247,80.883,80.822,18.0874546]
[1771443111457,19.54438247,80.883,80.805,18.0874546]
[1771443111758,19.54438247,80.86,80.805,18.0874546]
[1771443111956,19.54438247,80.86,80.792,11.1446]
[1771443112249,8.39110938,80.88,80.78,8.39110938]
[1771443112250,19.54438247,80.853,80.796,18.0874546]
[1771443112852,19.54438247,80.853,80.797,11.1439]
[1771443113053,19.54438247,80.87,80.801,18.0874546]
[1771443113251,19.54438247,80.87,80.821,18.0874546]
[1771443114055,8.39110938,80.9,80.82,8.39110938]
[1771443114056,19.54438247,80.885,80.822,18.0874546]
[1771443115053,19.54438247,80.919,80.841,18.0874546]
[1771443115356,19.54438247,80.895,80.824,18.0874546]
[1771443115554,19.54438247,80.895,80.809,18.0874546]
[1771443115852,19.54438247,80.861,80.809,18.0874546]
[1771443116461,19.54438247,80.881,80.821,18.0874546]
[1771443117958,19.54438247,80.881,80.83,18.03672981]
[1771443119162,18.41147932,80.898,80.84,8.39110938]
[1771443120151,11.1313,80.89,80.841,11.1379]
[1771443120356,18.41147932,80.889,80.83,18.03672981]
[1771443120568,18.41147932,80.889,80.811,18.03672981]
[1771443120765,18.41147932,80.857,80.792,18.03672981]
[1771443121568,18.41147932,80.856,80.774,18.03672981]
[1771443121963,18.41147932,80.856,80.76,8.39110938]
[1771443121964,18.41147932,80.832,80.782,18.03672981]
[1771443122662,18.41147932,80.83,80.782,18.03672981]
[1771443123063,18.41147932,80.857,80.782,18.03672981]
[1771443123261,18.41147932,80.857,80.788,11.1451]
[1771443123662,18.41147932,80.857,80.789,18.03672981]
[1771443124166,18.41147932,80.857,80.797,11.1439]
[1771443124167,11.137,80.848,80.797,11.1439]
[1771443124362,18.41147932,80.857,80.789,18.03672981]
[1771443124767,11.1385,80.838,80.789,18.03672981]
[1771443124956,18.41147932,80.841,80.789,18.03672981]
[1771443125155,18.41147932,80.859,80.789,18.03672981]
[1771443125360,18.41147932,80.859,80.78,8.39110938]
[1771443125361,18.41147932,80.859,80.799,18.03672981]
[1771443126159,11.1378,80.842,80.799,18.03672981]
[1771443126965,11.1378,80.842,80.799,29.18042981]
[1771443127773,18.41147932,80.859,80.799,29.18042981]
[1771443127774,11.1369,80.849,80.799,29.18042981]
[1771443128367,11.1357,80.858,80.808,18.03672981]
[1771443128667,22.2593,80.902,80.808,18.03672981]
[1771443128668,18.41147932,80.879,80.808,18.03672981]
[1771443128863,18.41147932,80.879,80.764,22.297]
[1771443128864,11.1332,80.876,80.828,18.03672981]
[1771443129270,18.41147932,80.879,80.83,11.1393]
[1771443129770,18.41147932,80.879,80.839,11.1381]
[1771443130278,18.41147932,80.895,80.84,18.03672981]
[1771443130472,18.41147932,80.895,80.841,18.03672981]
[1771443130774,18.41147932,80.911,80.841,18.03672981]
[1771443131269,18.41147932,80.911,80.84,8.39110938]
[1771443131270,18.41147932,80.928,80.856,18.03672981]
[1771443131463,18.41147932,80.944,80.881,18.03672981]
[1771443131667,18.41147932,80.944,80.865,18.03672981]
[1771443131874,18.41147932,80.938,80.882,18.03672981]
[1771443132264,18.41147932,80.938,80.892,11.1308]
[1771443132671,18.41147932,80.938,80.882,18.03672981]
[1771443132870,18.41147932,80.936,80.882,18.03672981]
[1771443133472,18.41147932,80.953,80.899,11.1298]
[1771443134072,18.41147932,80.953,80.881,18.03672981]
[1771443134676,18.41147932,80.953,80.905,11.129]
[1771443135074,18.41147932,80.953,80.881,18.03672981]
[1771443135274,18.41147932,80.953,80.89,11.1311]
[1771443135275,11.124,80.943,80.89,11.1311]
[1771443136980,18.69714832,80.94,80.881,18.03672981]
[1771443137382,18.69714832,80.956,80.897,11.1302]
[1771443137582,18.69714832,80.956,80.881,18.03672981]
[1771443138174,18.69714832,80.956,80.905,11.1291]
[1771443138383,18.69714832,80.956,80.901,18.07934052]
[1771443138981,18.69714832,80.956,80.912,11.128]
[1771443139681,18.69714832,80.956,80.904,11.1292]
[1771443139980,18.69714832,80.956,80.904,18.07934052]
[1771443140382,8.39110938,80.98,80.877,77.78]
[1771443140383,18.69714832,80.953,80.888,18.07934052]
[1771443141187,18.69714832,80.948,80.888,18.07934052]
[1771443141387,18.69714832,80.948,80.871,18.07934052]
[1771443141985,18.69714832,80.935,80.885,11.1318]
[1771443142183,18.69714832,80.959,80.891,18.07934052]
[1771443142584,18.69714832,80.959,80.871,18.07934052]
[1771443143289,18.69714832,80.95,80.896,11.1303]
[1771443143485,18.69714832,80.949,80.896,11.1303]
[1771443143991,18.69714832,80.946,80.896,11.1303]
[1771443144487,8.39110938,80.96,80.891,18.07934052]
[1771443144488,18.69714832,80.96,80.891,18.07934052]
[1771443144787,19.0,80.986,80.911,18.07934052]
[1771443144788,18.69714832,80.979,80.911,18.07934052]
[1771443145688,18.69714832,80.979,80.935,11.1249]